Workbook

Sheet Solicitud
A1: Solicitud de Cotización | O1: Fecha límite: | P1: 2018-09-16 | Q1: 0
O2: Asesores: | P2: 1 | Q2: 1
A3: Acuerdo Marco de Precios suministro de Tiquetes Aéreos
A5: Información de la Entidad Compradora
A7: Nombre de la Entidad: | C7: Universidad Distrital Francisco José de Caldas | J7: NIT: | K7: 899 999 230-7
A9: Dirección de la Entidad: | C9: Cra 7ma N° 40 B 53 | J9: Municipio: | K9: Bogotá D.C.
A11: Nombre del Comprador: | C11: Universidad Distrital Francisco José de Caldas | J11: Teléfono | K11: 3239300 | M11: 1801/02/03/
A13: Correo del comprador | C13: vicerrecadmin@udistrital.edu.co
A15: Fechas estimadas
A17: Fecha creación solicitud cotización | C17: 2018-03-05 | E17: Fecha generación OC | G17: =IF(C17="","",WORKDAY($C$17,10)) -> 2018-03-19 | I17: Fecha vencimiento OC | K17: 2018-09-16
E19: Vigencia estimada OC (Días) | G19: 390 | I19: Vigencia estimada OC (Meses) | K19: =+IF(G19="","",G19/30) -> 13
A21: Presupuesto
A23: Presupuesto de la Entidad | C23: 1006284450 | E23: % Tiquetes Nacionales | G23: 0.5 | H23: % Tiquetes Internacionales | J23: =IF(G23="","",1-G23) -> 0.5 | K23: Promedio anual | L23: =IF(C23="","",IF(K19>12,C23*12/$K$19,"Menor a un año")) -> 928877953.8
A25: Asesores
A27: Requiere Asesores | C27: Si | K27: Convenios
A29: Cantidad de Asesores | C29: 1 | K29: Convenio No. 29167-17 (Avianca- Acumulación de Millas), Convenio LATAM Ahorro (Tarifa Económica (15% Nacional, 15%Internacional), Tarifa Flexible (18%Nacional, 18% Internacional), Full Flexible (18% Nacional, 18% Internacional))
A31: Nombre de la sede | C31: Sede administrativa Calle 40
A33: Dirección de la sede | C33: Carrera 7ma N° 40 B 53
A35: Horario de los asesores | C35: 8:00 am - 5:00pm
A37: Gravámenes adicionales (estampillas)
A39: Si los hay, indique los gravámenes adicionales (estampillas) a los que está sujeta la Orden de Compra. Son gravámenes adicionales por ejemplo; estampillas y demás impuestos territoriales. Los impuestos como ICA y retención en la fuente NO son gravámenes adicionales.
A42: No. | B42: Descripción | H42: % Gravamen
A43: 1 | B43: Estampilla "Universidad Distrital Francisco José de Caldas"-50 Años | H43: 0.011
A44: 2 | B44: Pro Adulto Mayor | H44: 0.02
A45: 3 | B45: Pro Cultura | H45: 0.005
E47: Total Gravámenes adicionales | H47: =SUM(H43:I45) -> 0.036

Sheet Cotización
A1: Cotización | R1: =Solicitud!H47 -> 0.036
A3: Acuerdo Marco de Precios suministro de Tiquetes Aéreos
A4: 1
A5: Información del Proveedor
A7: Proveedor | C7: Subatours S.A.S., | J7: NIT: | K7: =VLOOKUP(C7,Datos!$A$13:$B$18,2,0) -> 800.075.003-6
A9: Información de la Entidad Compradora
A11: Nombre de la Entidad: | C11: =+IF(Solicitud!$C$7="","",Solicitud!$C$7) -> Universidad Distrital Francisco José de Caldas | J11: NIT: | K11: =+IF(Solicitud!$K$7="","",Solicitud!$K$7) -> 899 999 230-7
A13: Fecha creación solicitud cotización | C13: =+IF(Solicitud!$C$17="","",Solicitud!$C$17) -> 2018-03-05 | E13: Fecha generación OC | G13: =+IF(Solicitud!$G$17="","",Solicitud!$G$17) -> 2018-03-19 | I13: Fecha vencimiento OC | K13: =+IF(Solicitud!$K$17="","",Solicitud!$K$17) -> 2018-09-16 | M13: Duración OC (Días) | O13: =+IF(Solicitud!$G$19="","",Solicitud!$G$19) -> 390
A15: Presupuesto de la Entidad | C15: =+IF(Solicitud!$C$23="","",Solicitud!$C$23) -> 1006284450 | E15: % Tiquetes Nacionales | G15: =Solicitud!G23 -> 0.5 | I15: % Tiquetes Internacionales | K15: =IF(G15="","",1-G15) -> 0.5
A17: Asesores
A19: Nombre de la sede | C19: Dirección de la sede | E19: Horario de los asesores | G19: Cantidad de Asesores | I19: Precio Asesor (mes) | K19: Cantidad de meses | M19: Valor asesores | O19: Gravámenes adicionales | Q19: Valor Total asesores
A20: =Solicitud!C31 -> Sede administrativa Calle 40 | C20: =Solicitud!C33 -> Carrera 7ma N° 40 B 53 | E20: =Solicitud!C35 -> 8:00 am - 5:00pm | G20: =+Solicitud!C29 -> 1 | I20: 0 | K20: =+Solicitud!G19/30 -> 13 | M20: =+G20*I20*K20 -> 0 | O20: =(M20/(1-R1))-M20 -> 0 | Q20: =M20+O20 -> 0
O21: IVA | Q21: =Q20*0.16 -> 0
A22: Convenios | O22: Total Asesor | Q22: =SUM(Q20:R21) -> 0
A23: =IF(Solicitud!K29="","",Solicitud!K29) -> Convenio No. 29167-17 (Avianca- Acumulación de Millas), Convenio LATAM Ahorro (Tarifa Económica (15% Nacional, 15%Internacional), Tarifa Flexible (18%Nacional, 18% Internacional), Full Flexible (18% Nacional, 18% Internacional))
A26: Descuento Tiquetes Aéreos
A28: % Tiquetes Aéreos Nacionales | K28: =IF(Solicitud!$G$23="","",Solicitud!$G$23) -> 0.5
A29: Aerolínea | D29: Rango Tarifario | G29: Ponderación | H29: Descuento minimo | I29: Descuento adicional | J29: Descuento Total | K29: % Ponderado Nacional
A30: Avianca | D30: Clase Económica Rango Promocional | G30: 0.0532 | H30: 0.113 | I30: 0.057 | J30: =+H30+I30 -> 0.17 | K30: =+J30*G30 -> 0.009044 | M30: ="Descuento "&A30&" "&D30&" Nacional" -> Descuento Avianca Clase Económica Rango Promocional Nacional
A31: Avianca | D31: Clase Económica Rango Económico | G31: 0.0526 | H31: 0.048 | I31: 0.022 | J31: =+H31+I31 -> 0.07 | K31: =+J31*G31 -> 0.003682 | M31: ="Descuento "&A31&" "&D31&" Nacional" -> Descuento Avianca Clase Económica Rango Económico Nacional
A32: Avianca | D32: Clase Económica Rango Flexible | G32: 0.0526 | H32: 0.059 | I32: 0.02 | J32: 0.079 | K32: 0.0041554 | M32: Descuento Avianca Clase Económica Rango Flexible Nacional
A33: Avianca | D33: Clase Ejecutiva | G33: 0.0526 | H33: 0.143 | J33: 0.143 | K33: 0.0075218 | M33: Descuento Avianca Clase Ejecutiva Nacional
A34: LATAM | D34: Clase Económica Rango Promocional | G34: 0.0526 | H34: 0.103 | I34: 0.077 | J34: 0.18 | K34: 0.009468 | M34: Descuento LATAM Clase Económica Rango Promocional Nacional
A35: LATAM | D35: Clase Económica Rango Económico | G35: 0.0526 | H35: 0.059 | I35: 0.071 | J35: 0.13 | K35: 0.006838 | M35: Descuento LATAM Clase Económica Rango Económico Nacional
A36: LATAM | D36: Clase Económica Rango Flexible | G36: 0.0526 | H36: 0.083 | I36: 0.097 | J36: 0.18 | K36: 0.009468 | M36: Descuento LATAM Clase Económica Rango Flexible Nacional
A37: Viva Colombia | D37: Clase Económica Rango Promocional | G37: 0.0526 | H37: 0.143 | I37: 0.067 | J37: 0.21 | K37: 0.011046 | M37: Descuento Viva Colombia Clase Económica Rango Promocional Nacional
A38: Viva Colombia | D38: Clase Económica Rango Económico | G38: 0.0526 | H38: 0.123 | I38: 0.077 | J38: 0.2 | K38: 0.01052 | M38: Descuento Viva Colombia Clase Económica Rango Económico Nacional
A39: Viva Colombia | D39: Clase Económica Rango Flexible | G39: 0.0526 | H39: 0.148 | I39: 0.052 | J39: 0.2 | K39: 0.01052 | M39: Descuento Viva Colombia Clase Económica Rango Flexible Nacional
A40: Satena | D40: Clase Económica Rango Promocional | G40: 0.0526 | H40: 0.08 | I40: 0.24 | J40: 0.32 | K40: 0.016832 | M40: Descuento Satena Clase Económica Rango Promocional Nacional
A41: Satena | D41: Clase Económica Rango Económico | G41: 0.0526 | H41: 0.043 | I41: 0.147 | J41: 0.19 | K41: 0.009994 | M41: Descuento Satena Clase Económica Rango Económico Nacional
A42: Satena | D42: Clase Económica Rango Flexible | G42: 0.0526 | H42: 0.043 | I42: 0.147 | J42: 0.19 | K42: 0.009994 | M42: Descuento Satena Clase Económica Rango Flexible Nacional
A43: Easy Fly | D43: Clase Económica Rango Promocional | G43: 0.0526 | H43: 0.073 | I43: 0.337 | J43: 0.41 | K43: 0.021566 | M43: Descuento Easy Fly Clase Económica Rango Promocional Nacional
A44: Easy Fly | D44: Clase Económica Rango Económico | G44: 0.0526 | H44: 0.047 | I44: 0.123 | J44: 0.17 | K44: 0.008942 | M44: Descuento Easy Fly Clase Económica Rango Económico Nacional
A45: Easy Fly | D45: Clase Económica Rango Flexible | G45: 0.0526 | H45: 0.08 | I45: 0.09 | J45: 0.17 | K45: 0.008942 | M45: Descuento Easy Fly Clase Económica Rango Flexible Nacional
A46: Copa | D46: Clase Económica Rango Promocional | G46: 0.0526 | H46: 0.123 | I46: 0.127 | J46: 0.25 | K46: 0.01315 | M46: Descuento Copa Clase Económica Rango Promocional Nacional
A47: Copa | D47: Clase Económica Rango Económico | G47: 0.0526 | H47: 0.08 | I47: 0.17 | J47: 0.25 | K47: 0.01315 | M47: Descuento Copa Clase Económica Rango Económico Nacional
A48: Copa | D48: Clase Económica Rango Flexible | G48: 0.0526 | H48: 0.123 | I48: 0.127 | J48: 0.25 | K48: 0.01315 | M48: Descuento Copa Clase Económica Rango Flexible Nacional
A49: Aero Antioquia | D49: Clase Económica Rango Promocional | G49: 0 | H49: 0.059 | J49: 0.059 | K49: 0 | M49: Descuento Aero Antioquia Clase Económica Rango Promocional Nacional
A50: Aero Antioquia | D50: Clase Económica Rango Económico | G50: 0 | H50: 0.034 | J50: 0.034 | K50: 0 | M50: Descuento Aero Antioquia Clase Económica Rango Económico Nacional
A51: Aero Antioquia | D51: Clase Económica Rango Flexible | G51: 0 | H51: 0.057 | J51: 0.057 | K51: 0 | M51: Descuento Aero Antioquia Clase Económica Rango Flexible Nacional
A52: Otras Aerolíneas | D52: Clase Económica Rango Promocional | G52: 0 | H52: 0.133 | J52: 0.133 | K52: 0 | M52: Descuento Otras Aerolíneas Clase Económica Rango Promocional Nacional
A53: Otras Aerolíneas | D53: Clase Económica Rango Económico | G53: 0 | H53: 0.114 | J53: 0.114 | K53: 0 | M53: Descuento Otras Aerolíneas Clase Económica Rango Económico Nacional
A54: Otras Aerolíneas | D54: Clase Económica Rango Flexible | G54: 0 | H54: 0.143 | J54: 0.143 | K54: 0 | M54: Descuento Otras Aerolíneas Clase Económica Rango Flexible Nacional
E55: % Ponderación total: | G55: =SUM(G30:G54) -> 1 | I55: % Ponderado Nacionales: | K55: =+SUM(K30:K54) -> 0.1979832
A57: % Tiquetes Aéreos Internacionales | K57: =IF($K$28="","",1-$K$28) -> 0.5
A58: Aerolínea | D58: Rango Tarifario | G58: Ponderación | H58: Descuento minimo | I58: Descuento adicional | J58: Descuento Total | K58: % Ponderado Nacional
A59: Avianca – Aerogal – Taca- Lacsa | D59: Clase Económica Rango Promocional | G59: 0.0256 | H59: 0.047 | I59: 0.043 | J59: =+H59+I59 -> 0.09 | K59: =+J59*G59 -> 0.002304 | M59: ="Descuento "&A59&" "&D59&" Internacional" -> Descuento Avianca – Aerogal – Taca- Lacsa Clase Económica Rango Promocional Internacional
A60: Avianca – Aerogal – Taca- Lacsa | D60: Clase Económica Rango Económico | G60: 0.0232 | H60: 0.061 | I60: 0.009 | J60: =+H60+I60 -> 0.07 | K60: =+J60*G60 -> 0.001624 | M60: ="Descuento "&A60&" "&D60&" Internacional" -> Descuento Avianca – Aerogal – Taca- Lacsa Clase Económica Rango Económico Internacional
A61: Avianca – Aerogal – Taca- Lacsa | D61: Clase Económica Rango Flexible | G61: 0.0232 | H61: 0.123 | J61: 0.123 | K61: 0.0028536 | M61: Descuento Avianca – Aerogal – Taca- Lacsa Clase Económica Rango Flexible Internacional
A62: Avianca – Aerogal – Taca- Lacsa | D62: Clase Ejecutiva | G62: 0.0232 | H62: 0.143 | J62: 0.143 | K62: 0.0033176 | M62: Descuento Avianca – Aerogal – Taca- Lacsa Clase Ejecutiva Internacional
A63: Copa | D63: Clase Económica Rango Promocional | G63: 0.0232 | H63: 0.047 | I63: 0.053 | J63: 0.1 | K63: 0.00232 | M63: Descuento Copa Clase Económica Rango Promocional Internacional
A64: Copa | D64: Clase Económica Rango Económico | G64: 0.0232 | H64: 0.073 | I64: 0.017 | J64: 0.09 | K64: 0.002088 | M64: Descuento Copa Clase Económica Rango Económico Internacional
A65: Copa | D65: Clase Económica Rango Flexible | G65: 0.0232 | H65: 0.124 | J65: 0.124 | K65: 0.0028768 | M65: Descuento Copa Clase Económica Rango Flexible Internacional
A66: Copa | D66: Clase Ejecutiva | G66: 0.0232 | H66: 0.148 | J66: 0.148 | K66: 0.0034336 | M66: Descuento Copa Clase Ejecutiva Internacional
A67: American Airlines | D67: Clase Económica Rango Promocional | G67: 0.0232 | H67: 0.047 | I67: 0.043 | J67: 0.09 | K67: 0.002088 | M67: Descuento American Airlines Clase Económica Rango Promocional Internacional
A68: American Airlines | D68: Clase Económica Rango Económico | G68: 0.0232 | H68: 0.073 | I68: 0.017 | J68: 0.09 | K68: 0.002088 | M68: Descuento American Airlines Clase Económica Rango Económico Internacional
A69: American Airlines | D69: Clase Económica Rango Flexible | G69: 0.0232 | H69: 0.124 | J69: 0.124 | K69: 0.0028768 | M69: Descuento American Airlines Clase Económica Rango Flexible Internacional
A70: American Airlines | D70: Clase Ejecutiva | G70: 0.0232 | H70: 0.144 | J70: 0.144 | K70: 0.0033408 | M70: Descuento American Airlines Clase Ejecutiva Internacional
A71: LATAM | D71: Clase Económica Rango Promocional | G71: 0.0232 | H71: 0.047 | I71: 0.093 | J71: 0.14 | K71: 0.003248 | M71: Descuento LATAM Clase Económica Rango Promocional Internacional
A72: LATAM | D72: Clase Económica Rango Económico | G72: 0.0232 | H72: 0.073 | I72: 0.027 | J72: 0.1 | K72: 0.00232 | M72: Descuento LATAM Clase Económica Rango Económico Internacional
A73: LATAM | D73: Clase Económica Rango Flexible | G73: 0.0232 | H73: 0.124 | J73: 0.124 | K73: 0.0028768 | M73: Descuento LATAM Clase Económica Rango Flexible Internacional
A74: LATAM | D74: Clase Ejecutiva | G74: 0.0232 | H74: 0.144 | J74: 0.144 | K74: 0.0033408 | M74: Descuento LATAM Clase Ejecutiva Internacional
A75: Jet Blue | D75: Clase Económica Rango Promocional | G75: 0.0232 | H75: 0.097 | I75: 0.003 | J75: 0.1 | K75: 0.00232 | M75: Descuento Jet Blue Clase Económica Rango Promocional Internacional
A76: Jet Blue | D76: Clase Económica Rango Económico | G76: 0.0232 | H76: 0.097 | I76: 0.003 | J76: 0.1 | K76: 0.00232 | M76: Descuento Jet Blue Clase Económica Rango Económico Internacional
A77: Jet Blue | D77: Clase Económica Rango Flexible | G77: 0.0232 | H77: 0.124 | J77: 0.124 | K77: 0.0028768 | M77: Descuento Jet Blue Clase Económica Rango Flexible Internacional
A78: Jet Blue | D78: Clase Ejecutiva | G78: 0.0232 | H78: 0.143 | J78: 0.143 | K78: 0.0033176 | M78: Descuento Jet Blue Clase Ejecutiva Internacional
A79: Spirit | D79: Clase Económica Rango Promocional | G79: 0.0232 | H79: 0.147 | J79: 0.147 | K79: 0.0034104 | M79: Descuento Spirit Clase Económica Rango Promocional Internacional
A80: Spirit | D80: Clase Económica Rango Económico | G80: 0.0232 | H80: 0.147 | J80: 0.147 | K80: 0.0034104 | M80: Descuento Spirit Clase Económica Rango Económico Internacional
A81: Spirit | D81: Clase Económica Rango Flexible | G81: 0.0232 | H81: 0.147 | J81: 0.147 | K81: 0.0034104 | M81: Descuento Spirit Clase Económica Rango Flexible Internacional
A82: United | D82: Clase Económica Rango Promocional | G82: 0.0232 | H82: 0.047 | I82: 0.043 | J82: 0.09 | K82: 0.002088 | M82: Descuento United Clase Económica Rango Promocional Internacional
A83: United | D83: Clase Económica Rango Económico | G83: 0.0232 | H83: 0.097 | J83: 0.097 | K83: 0.0022504 | M83: Descuento United Clase Económica Rango Económico Internacional
A84: United | D84: Clase Económica Rango Flexible | G84: 0.0232 | H84: 0.124 | J84: 0.124 | K84: 0.0028768 | M84: Descuento United Clase Económica Rango Flexible Internacional
A85: United | D85: Clase Ejecutiva | G85: 0.0232 | H85: 0.143 | J85: 0.143 | K85: 0.0033176 | M85: Descuento United Clase Ejecutiva Internacional
A86: Iberia | D86: Clase Económica Rango Promocional | G86: 0.0232 | H86: 0.047 | I86: 0.043 | J86: 0.09 | K86: 0.002088 | M86: Descuento Iberia Clase Económica Rango Promocional Internacional
A87: Iberia | D87: Clase Económica Rango Económico | G87: 0.0232 | H87: 0.084 | J87: 0.084 | K87: 0.0019488 | M87: Descuento Iberia Clase Económica Rango Económico Internacional
A88: Iberia | D88: Clase Económica Rango Flexible | G88: 0.0232 | H88: 0.133 | J88: 0.133 | K88: 0.0030856 | M88: Descuento Iberia Clase Económica Rango Flexible Internacional
A89: Iberia | D89: Clase Ejecutiva | G89: 0.0232 | H89: 0.143 | J89: 0.143 | K89: 0.0033176 | M89: Descuento Iberia Clase Ejecutiva Internacional
A90: Lufthansa | D90: Clase Económica Rango Promocional | G90: 0.0232 | H90: 0.047 | I90: 0.043 | J90: 0.09 | K90: 0.002088 | M90: Descuento Lufthansa Clase Económica Rango Promocional Internacional
A91: Lufthansa | D91: Clase Económica Rango Económico | G91: 0.0232 | H91: 0.047 | J91: 0.047 | K91: 0.0010904 | M91: Descuento Lufthansa Clase Económica Rango Económico Internacional
A92: Lufthansa | D92: Clase Económica Rango Flexible | G92: 0.0232 | H92: 0.133 | J92: 0.133 | K92: 0.0030856 | M92: Descuento Lufthansa Clase Económica Rango Flexible Internacional
A93: Lufthansa | D93: Clase Ejecutiva | G93: 0.0232 | H93: 0.143 | J93: 0.143 | K93: 0.0033176 | M93: Descuento Lufthansa Clase Ejecutiva Internacional
A94: Delta | D94: Clase Económica Rango Promocional | G94: 0.0232 | H94: 0.049 | I94: 0.041 | J94: 0.09 | K94: 0.002088 | M94: Descuento Delta Clase Económica Rango Promocional Internacional
A95: Delta | D95: Clase Económica Rango Económico | G95: 0.0232 | H95: 0.049 | J95: 0.049 | K95: 0.0011368 | M95: Descuento Delta Clase Económica Rango Económico Internacional
A96: Delta | D96: Clase Económica Rango Flexible | G96: 0.0232 | H96: 0.133 | J96: 0.133 | K96: 0.0030856 | M96: Descuento Delta Clase Económica Rango Flexible Internacional
A97: Delta | D97: Clase Ejecutiva | G97: 0.0232 | H97: 0.143 | J97: 0.143 | K97: 0.0033176 | M97: Descuento Delta Clase Ejecutiva Internacional
A98: Otras Aerolíneas | D98: Clase Económica Rango Promocional | G98: 0.0232 | H98: 0.057 | I98: 0.033 | J98: 0.09 | K98: 0.002088 | M98: Descuento Otras Aerolíneas Clase Económica Rango Promocional Internacional
A99: Otras Aerolíneas | D99: Clase Económica Rango Económico | G99: 0.0232 | H99: 0.084 | J99: 0.084 | K99: 0.0019488 | M99: Descuento Otras Aerolíneas Clase Económica Rango Económico Internacional
A100: Otras Aerolíneas | D100: Clase Económica Rango Flexible | G100: 0.0232 | H100: 0.143 | J100: 0.143 | K100: 0.0033176 | M100: Descuento Otras Aerolíneas Clase Económica Rango Flexible Internacional
A101: Otras Aerolíneas | D101: Clase Ejecutiva | G101: 0.0232 | H101: 0.143 | J101: 0.143 | K101: 0.0033176 | M101: Descuento Otras Aerolíneas Clase Ejecutiva Internacional
E102: % Ponderación total: | G102: =+SUM(G59:G101) -> 1 | I102: % Ponderado Internacionales: | K102: =+SUM(K59:K101) -> 0.1149168
D104: Descuento total ponderado Cotización | I104: =(K102*K57)+(K55*K28)-(Q22/C15) -> 0.15645
D105: El descuento cotizado no incluye los gravámenes adicionales (estampillas). El Proveedor en la facturación ajusta el porcentaje de descuento para cubrir los gravámenes adicionales.
B111: DP= Descuento ponderado de la Cotización
B112: XI= Peso estimado por la Entidad Compradora para los Tiquetes Aéreos internacionales
B113: XN= Peso estimado por la Entidad Compradora para los Tiquetes Aéreos nacionales
B114: DIi= Es el descuento cotizado para el Ítem i en Tiquetes Aéreos internacionales
B115: PIi= Es el porcentaje de ponderación del Ítem i en Tiquetes Aéreos internacionales de acuerdo con la tabla publicada en el Catálogo.
B116: DNi= Es el descuento Cotizado para el Ítem i en Tiquetes Aéreos nacionales.
B117: PNi= Es el porcentaje de ponderación del Ítem i en Tiquetes Aéreos nacionales de acuerdo con la tabla publicada en el Catálogo.
B118: A = Precio total mensual del asesor Implant (para Entidades Compradoras que hayan solicitado un asesor Implant en Órdenes de Compra de menos de $1.000.000.000 promedio anual).
B119: T = Tiempo en meses de la Orden de Compra
B120: PT = Valor total de la Orden de Compra

Sheet Datos (hidden)
A3: Promedio anual de la Orden de Compra | B3: Número máximo de Asesores Implant
A4: Menor a $1.000.000.000 | B4: 0 | C4: Tiene precio, no hay techo
A5: $1.000.000.000 hasta $1.500.000.000 | B5: 1 | C5: gratis
A6: $1.500.000.001 hasta $2.000.000.000 | B6: 2 | C6: gratis
A7: $2.000.000.001 hasta $2.500.000.000 | B7: 3 | C7: gratis
A8: $2.500.000.001 o mayor | B8: 4 | C8: gratis
A12: Proveedor | B12: NIT
A13: Expreso Viajes y Turismo Expreso S.A.S. | B13: 800.206.979-2
A14: Agencia de Viajes y Turismo Goldtour S.A.S. | B14: 800.212.545-4
A15: Mayatur S.A.S. | B15: 860.015.826-2
A16: Servicio Aéreo a Territorios Nacionales S.A. | B16: 899.999.143-4
A17: Subatours S.A.S., | B17: 800.075.003-6
A18: Unión Temporal Novatours – Vision Tours 04-2015 | B18: 900.889.896-2

Sheet BDPorcentajes (hidden)
B2: Expreso Viajes y Turismo Expreso S.A.S. | C2: Subatours S.A.S., | D2: Mayatur S.A.S. | E2: Servicio Aéreo a Territorios Nacionales S.A. | F2: Agencia de Viajes y Turismo Goldtour S.A.S. | G2: Unión Temporal Novatours – Vision Tours 04-2015
A3: Descuento Avianca Clase Económica Rango Promocional Nacional | B3: 0.038 | C3: 0.113 | D3: 0.035 | E3: 0.04 | F3: 0.1 | G3: 0.03
A4: Descuento Avianca Clase Económica Rango Económico Nacional | B4: 0.038 | C4: 0.048 | D4: 0.035 | E4: 0.04 | F4: 0.08 | G4: 0.03
A5: Descuento Avianca Clase Económica Rango Flexible Nacional | B5: 0.038 | C5: 0.059 | D5: 0.035 | E5: 0.04 | F5: 0.06 | G5: 0.013
A6: Descuento Avianca Clase Ejecutiva Nacional | B6: 0.038 | C6: 0.143 | D6: 0.035 | E6: 0.035 | F6: 0.12 | G6: 0.01
A7: Descuento LATAM Clase Económica Rango Promocional Nacional | B7: 0.038 | C7: 0.103 | D7: 0.035 | E7: 0.06 | F7: 0.1 | G7: 0.058
A8: Descuento LATAM Clase Económica Rango Económico Nacional | B8: 0.038 | C8: 0.059 | D8: 0.035 | E8: 0.06 | F8: 0.08 | G8: 0.058
A9: Descuento LATAM Clase Económica Rango Flexible Nacional | B9: 0.038 | C9: 0.083 | D9: 0.035 | E9: 0.06 | F9: 0.06 | G9: 0.058
A10: Descuento Viva Colombia Clase Económica Rango Promocional Nacional | B10: 0.038 | C10: 0.143 | D10: 0.035 | E10: 0.03 | F10: 0.1 | G10: 0.005
A11: Descuento Viva Colombia Clase Económica Rango Económico Nacional | B11: 0.038 | C11: 0.123 | D11: 0.035 | E11: 0.03 | F11: 0.08 | G11: 0.005
A12: Descuento Viva Colombia Clase Económica Rango Flexible Nacional | B12: 0.038 | C12: 0.148 | D12: 0.035 | E12: 0.03 | F12: 0.06 | G12: 0.005
A13: Descuento Satena Clase Económica Rango Promocional Nacional | B13: 0.038 | C13: 0.08 | D13: 0.035 | E13: 0.032 | F13: 0.1 | G13: 0.03
A14: Descuento Satena Clase Económica Rango Económico Nacional | B14: 0.038 | C14: 0.043 | D14: 0.035 | E14: 0.025 | F14: 0.08 | G14: 0.03
A15: Descuento Satena Clase Económica Rango Flexible Nacional | B15: 0.038 | C15: 0.043 | D15: 0.035 | E15: 0.023 | F15: 0.06 | G15: 0.03
A16: Descuento Easy Fly Clase Económica Rango Promocional Nacional | B16: 0.038 | C16: 0.073 | D16: 0.035 | E16: 0.05 | F16: 0.1 | G16: 0.06
A17: Descuento Easy Fly Clase Económica Rango Económico Nacional | B17: 0.038 | C17: 0.047 | D17: 0.035 | E17: 0.05 | F17: 0.08 | G17: 0.06
A18: Descuento Easy Fly Clase Económica Rango Flexible Nacional | B18: 0.038 | C18: 0.08 | D18: 0.035 | E18: 0.05 | F18: 0.06 | G18: 0.06
A19: Descuento Copa Clase Económica Rango Promocional Nacional | B19: 0.038 | C19: 0.123 | D19: 0.035 | E19: 0.04 | F19: 0.1 | G19: 0.03
A20: Descuento Copa Clase Económica Rango Económico Nacional | B20: 0.038 | C20: 0.08 | D20: 0.035 | E20: 0.04 | F20: 0.08 | G20: 0.03
A21: Descuento Copa Clase Económica Rango Flexible Nacional | B21: 0.038 | C21: 0.123 | D21: 0.035 | E21: 0.04 | F21: 0.06 | G21: 0.03
A22: Descuento Aero Antioquia Clase Económica Rango Promocional Nacional | B22: 0.038 | C22: 0.059 | D22: 0.035 | E22: 0.03 | F22: 0.1 | G22: 0.01
A23: Descuento Aero Antioquia Clase Económica Rango Económico Nacional | B23: 0.038 | C23: 0.034 | D23: 0.035 | E23: 0.03 | F23: 0.08 | G23: 0.01
A24: Descuento Aero Antioquia Clase Económica Rango Flexible Nacional | B24: 0.038 | C24: 0.057 | D24: 0.035 | E24: 0.03 | F24: 0.06 | G24: 0.01
A25: Descuento Otras Aerolíneas Clase Económica Rango Promocional Nacional | B25: 0.038 | C25: 0.133 | D25: 0.035 | E25: 0.03 | F25: 0.1 | G25: 0.01
A26: Descuento Otras Aerolíneas Clase Económica Rango Económico Nacional | B26: 0.038 | C26: 0.114 | D26: 0.035 | E26: 0.03 | F26: 0.08 | G26: 0.01
A27: Descuento Otras Aerolíneas Clase Económica Rango Flexible Nacional | B27: 0.038 | C27: 0.143 | D27: 0.035 | E27: 0.03 | F27: 0.06 | G27: 0.01
A28: Descuento Avianca – Aerogal – Taca- Lacsa Clase Económica Rango Promocional Internacional | B28: 0.038 | C28: 0.047 | D28: 0.035 | E28: 0.035 | F28: 0.04 | G28: 0.03
A29: Descuento Avianca – Aerogal – Taca- Lacsa Clase Económica Rango Económico Internacional | B29: 0.038 | C29: 0.061 | D29: 0.035 | E29: 0.035 | F29: 0.04 | G29: 0.02
A30: Descuento Avianca – Aerogal – Taca- Lacsa Clase Económica Rango Flexible Internacional | B30: 0.038 | C30: 0.123 | D30: 0.035 | E30: 0.035 | F30: 0.07 | G30: 0.013
A31: Descuento Avianca – Aerogal – Taca- Lacsa Clase Ejecutiva Internacional | B31: 0.038 | C31: 0.143 | D31: 0.035 | E31: 0.035 | F31: 0.12 | G31: 0.01
A32: Descuento Copa Clase Económica Rango Promocional Internacional | B32: 0.038 | C32: 0.047 | D32: 0.035 | E32: 0.035 | F32: 0.04 | G32: 0.013
A33: Descuento Copa Clase Económica Rango Económico Internacional | B33: 0.038 | C33: 0.073 | D33: 0.035 | E33: 0.035 | F33: 0.04 | G33: 0.013
A34: Descuento Copa Clase Económica Rango Flexible Internacional | B34: 0.038 | C34: 0.124 | D34: 0.035 | E34: 0.035 | F34: 0.07 | G34: 0.013
A35: Descuento Copa Clase Ejecutiva Internacional | B35: 0.038 | C35: 0.148 | D35: 0.035 | E35: 0.035 | F35: 0.12 | G35: 0.013
A36: Descuento American Airlines Clase Económica Rango Promocional Internacional | B36: 0.038 | C36: 0.047 | D36: 0.035 | E36: 0.04 | F36: 0.04 | G36: 0.013
A37: Descuento American Airlines Clase Económica Rango Económico Internacional | B37: 0.038 | C37: 0.073 | D37: 0.035 | E37: 0.04 | F37: 0.04 | G37: 0.013
A38: Descuento American Airlines Clase Económica Rango Flexible Internacional | B38: 0.038 | C38: 0.124 | D38: 0.035 | E38: 0.04 | F38: 0.07 | G38: 0.013
A39: Descuento American Airlines Clase Ejecutiva Internacional | B39: 0.038 | C39: 0.144 | D39: 0.035 | E39: 0.04 | F39: 0.12 | G39: 0.013
A40: Descuento LATAM Clase Económica Rango Promocional Internacional | B40: 0.038 | C40: 0.047 | D40: 0.035 | E40: 0.04 | F40: 0.04 | G40: 0.04
A41: Descuento LATAM Clase Económica Rango Económico Internacional | B41: 0.038 | C41: 0.073 | D41: 0.035 | E41: 0.04 | F41: 0.04 | G41: 0.04
A42: Descuento LATAM Clase Económica Rango Flexible Internacional | B42: 0.038 | C42: 0.124 | D42: 0.035 | E42: 0.04 | F42: 0.07 | G42: 0.04
A43: Descuento LATAM Clase Ejecutiva Internacional | B43: 0.038 | C43: 0.144 | D43: 0.035 | E43: 0.04 | F43: 0.12 | G43: 0.01
A44: Descuento Jet Blue Clase Económica Rango Promocional Internacional | B44: 0.038 | C44: 0.097 | D44: 0.035 | E44: 0.02 | F44: 0.04 | G44: 0.03
A45: Descuento Jet Blue Clase Económica Rango Económico Internacional | B45: 0.038 | C45: 0.097 | D45: 0.035 | E45: 0.02 | F45: 0.04 | G45: 0.03
A46: Descuento Jet Blue Clase Económica Rango Flexible Internacional | B46: 0.038 | C46: 0.124 | D46: 0.035 | E46: 0.02 | F46: 0.07 | G46: 0.03
A47: Descuento Jet Blue Clase Ejecutiva Internacional | B47: 0.038 | C47: 0.143 | D47: 0.035 | E47: 0.02 | F47: 0.12 | G47: 0.03
A48: Descuento Spirit Clase Económica Rango Promocional Internacional | B48: 0.038 | C48: 0.147 | D48: 0.035 | E48: 0.02 | F48: 0.04 | G48: 0.01
A49: Descuento Spirit Clase Económica Rango Económico Internacional | B49: 0.038 | C49: 0.147 | D49: 0.035 | E49: 0.02 | F49: 0.04 | G49: 0.01
A50: Descuento Spirit Clase Económica Rango Flexible Internacional | B50: 0.038 | C50: 0.147 | D50: 0.035 | E50: 0.02 | F50: 0.07 | G50: 0.01
A51: Descuento United Clase Económica Rango Promocional Internacional | B51: 0.038 | C51: 0.047 | D51: 0.035 | E51: 0.03 | F51: 0.04 | G51: 0.013
A52: Descuento United Clase Económica Rango Económico Internacional | B52: 0.038 | C52: 0.097 | D52: 0.035 | E52: 0.03 | F52: 0.04 | G52: 0.013
A53: Descuento United Clase Económica Rango Flexible Internacional | B53: 0.038 | C53: 0.124 | D53: 0.035 | E53: 0.03 | F53: 0.07 | G53: 0.013
A54: Descuento United Clase Ejecutiva Internacional | B54: 0.038 | C54: 0.143 | D54: 0.035 | E54: 0.03 | F54: 0.12 | G54: 0.013
A55: Descuento Iberia Clase Económica Rango Promocional Internacional | B55: 0.038 | C55: 0.047 | D55: 0.035 | E55: 0.02 | F55: 0.04 | G55: 0.013
A56: Descuento Iberia Clase Económica Rango Económico Internacional | B56: 0.038 | C56: 0.084 | D56: 0.035 | E56: 0.02 | F56: 0.04 | G56: 0.013
A57: Descuento Iberia Clase Económica Rango Flexible Internacional | B57: 0.038 | C57: 0.133 | D57: 0.035 | E57: 0.02 | F57: 0.07 | G57: 0.013
A58: Descuento Iberia Clase Ejecutiva Internacional | B58: 0.038 | C58: 0.143 | D58: 0.035 | E58: 0.02 | F58: 0.12 | G58: 0.013
A59: Descuento Lufthansa Clase Económica Rango Promocional Internacional | B59: 0.038 | C59: 0.047 | D59: 0.035 | E59: 0.02 | F59: 0.04 | G59: 0.013
A60: Descuento Lufthansa Clase Económica Rango Económico Internacional | B60: 0.038 | C60: 0.047 | D60: 0.035 | E60: 0.02 | F60: 0.04 | G60: 0.013
A61: Descuento Lufthansa Clase Económica Rango Flexible Internacional | B61: 0.038 | C61: 0.133 | D61: 0.035 | E61: 0.02 | F61: 0.07 | G61: 0.013
A62: Descuento Lufthansa Clase Ejecutiva Internacional | B62: 0.038 | C62: 0.143 | D62: 0.035 | E62: 0.02 | F62: 0.12 | G62: 0.013
A63: Descuento Delta Clase Económica Rango Promocional Internacional | B63: 0.038 | C63: 0.049 | D63: 0.035 | E63: 0.035 | F63: 0.04 | G63: 0.01
A64: Descuento Delta Clase Económica Rango Económico Internacional | B64: 0.038 | C64: 0.049 | D64: 0.035 | E64: 0.035 | F64: 0.04 | G64: 0.05
A65: Descuento Delta Clase Económica Rango Flexible Internacional | B65: 0.038 | C65: 0.133 | D65: 0.035 | E65: 0.035 | F65: 0.07 | G65: 0.05
A66: Descuento Delta Clase Ejecutiva Internacional | B66: 0.038 | C66: 0.143 | D66: 0.035 | E66: 0.035 | F66: 0.12 | G66: 0.03
A67: Descuento Otras Aerolíneas Clase Económica Rango Promocional Internacional | B67: 0.038 | C67: 0.057 | D67: 0.035 | E67: 0.02 | F67: 0.04 | G67: 0.013
A68: Descuento Otras Aerolíneas Clase Económica Rango Económico Internacional | B68: 0.038 | C68: 0.084 | D68: 0.035 | E68: 0.02 | F68: 0.04 | G68: 0.013
A69: Descuento Otras Aerolíneas Clase Económica Rango Flexible Internacional | B69: 0.038 | C69: 0.143 | D69: 0.035 | E69: 0.02 | F69: 0.07 | G69: 0.013
A70: Descuento Otras Aerolíneas Clase Ejecutiva Internacional | B70: 0.038 | C70: 0.143 | D70: 0.035 | E70: 0.02 | F70: 0.12 | G70: 0.013
